{"text_format":"1","workbook":"xlsx","n_sheets":2,"sheets":["Imputação Viatura Trabalhador","Alerta"],"not_rendered":{"charts":0,"images":2,"macros":1,"external_links":0,"defined_names":2,"comments":0,"pivot_tables":0},"unopened":[],"bounds":{"document_bytes":16777216,"sheet_cells":100000,"rows_first":2000,"rows_last":500,"rows_between":2000,"halvings":0,"cell_chars":16384,"cell_head_chars":4096},"cells_cut":0,"cells_raw":0,"read":"whole","date_system":"1900"}

{"sheet":"Imputação Viatura Trabalhador","index":0,"n_rows":71,"n_cols":21,"rows_kept":71,"cut":false,"hidden":false,"merged":[[51,1,51,13],[50,1,50,13],[34,1,34,14],[15,1,15,5],[17,1,17,5],[19,1,19,5],[21,1,21,5],[23,1,23,5],[9,1,9,11],[49,1,49,13],[70,1,70,14],[0,1,0,13],[66,3,66,9],[4,2,4,9],[5,2,5,9],[7,1,7,13],[1,1,2,13],[25,1,25,5],[27,1,28,6],[29,1,29,5],[55,1,55,5],[30,1,30,13],[69,1,69,14],[52,5,52,8]]}
[null,null,null,null,null,null,null,null,null,null,null,null,null,null,null,null,null,"Idade do veículo","Desvalorização anual","Desvalorização acumulada",2020]
[null,"Simulador - Imputação da viatura ao trabalhador em sede de IRS",null,null,null,null,null,null,null,null,null,null,null,null,null,null,null,0,0,0,2021]
[null,null,null,null,null,null,null,null,null,null,null,null,null,null,null,null,null,1,0.2,0.2,2022]
[null,null,null,null,null,null,null,null,null,null,null,null,null,null,null,null,null,2,0.15,0.35,2023]
[null,"Nome:","Nome da Empresa",null,null,null,null,null,null,null,null,null,null,null,null,null,null,3,0.1,0.45,2024]
[null,"NIF:","NIF da Empresa",null,null,null,null,null,null,null,null,null,null,null,null,null,null,4,0.1,0.55000000000000004,2025]
[null,null,null,null,null,null,null,null,null,null,null,null,null,null,null,null,null,5,0.1,0.65,2026]
[null,"Dados para simulação",null,null,null,null,null,null,null,null,null,null,null,null,null,null,null,6,0.05,0.7]
[null,null,null,null,null,null,null,null,null,null,null,null,null,null,null,null,null,7,0.05,0.75]
[null,null,null,null,null,null,null,null,null,null,null,null,null,null,null,null,null,8,0.05,0.8]
[null,null,null,null,null,null,null,null,null,null,null,null,null,null,null,null,null,9,0.05,0.85]
[null,"Período de tributação",null,null,null,null,null,null,null,null,null,null,null,2026,null,null,null,10,0.05,0.9]
[]
[null,"Data da matrícula",null,null,null,null,null,null,null,null,null,null,null,"2026-03-06",null,null,null,"Idade da Viatura",{"$f":"IF(S35>=N12,0,DATEDIF(N14,T14,\"y\"))","v":0},{"$f":"IF(N12=2020,DATE(2020,1,1),IF(N12=2021,DATE(2021,1,1),IF(N12=2022,DATE(2022,1,1),IF(N12=2023,DATE(2023,1,1),IF(N12=2024,DATE(2024,1,1),IF(N12=2025,DATE(2025,1,1),IF(N12=2026,DATE(2026,1,1),\"\")))))))","v":"2026-01-01"}]
[]
[null,"Valor de aquisição da viatura",null,null,null,null,null,null,null,null,null,null,null,0,null,null,null,"Tx Desv. Acumulada",{"$f":"IF(S14>10,T12,SUMIF(R2:R12,S14,T2:T12))","v":0},{"$f":"TEXT(T14,\"DD/MM/AAAA\")","v":"01/01/2026"}]
[]
[null,"Meses de utilização",null,null,null,null,null,null,null,null,null,null,null,0,null,null,null,"Valor de Mercado",{"$f":"IF(S35>N12,0,N16-(N16*S16))","v":0},{"$f":"TEXT(S18,\"* # ##0,00 €\")","v":"0,00 €"}]
[]
[null,null,null,null,null,null,null,null,null,null,null,null,null,null,null,null,null,null,{"$f":"IF(N18=0,0,S18*0.0075)","v":0}]
[]
[null,null,null,null,null,null,null,null,null,null,null,null,null,null,null,null,null,"Valor a tributar",{"$f":"S20*N18","v":0}]
[]
[]
[]
[]
[]
[]
[]
[]
[]
[]
[]
[]
[null,"Resultado",null,null,null,null,null,null,null,null,null,null,null,null,null,null,null,null,{"$f":"YEAR(N14)","v":2026},{"$f":"DATE(N12,12,31)","v":"2026-12-31"}]
[]
[null,null,null,null,null,null,null,null,null,null,null,null,null,{"$f":"U5","v":"1905-07-16"}]
[null,"IRS"]
[null,"Valor de Mercado:",null,null,null,null,null,null,null,null,null,null,null,{"$f":"S18","v":0},null,null,null,null,null,{"$f":"TEXT(T35,\"DD/MM/AAAA\")","v":"31/12/2026"}]
[]
[null,"Base tributável anual:",null,null,null,null,null,null,null,null,null,null,null,{"$f":"S22","v":0},null,null,null,"SS",{"$f":"IF(S35>N12,0,IF(N18=0,0,(N16*0.0075)*N18))","v":0},{"$f":"TEXT((S41/N18),\"* # ##0,00 €\")","v":{"$error":"#DIV/0!"}}]
[]
[null,"Base tributável mensal:",null,null,null,null,null,null,null,null,null,null,null,{"$f":"S20","v":0},null,null,null,null,{"$f":"IF(N18=0,0,(S41/N18))","v":0}]
[]
[null,"Seg. Social"]
[null,"Base de incidência contributiva anual:",null,null,null,null,null,null,null,null,null,null,null,{"$f":"S41","v":0}]
[null,"Base de incidência contributiva mensal:",null,null,null,null,null,null,null,null,null,null,null,{"$f":"S43","v":0}]
[]
[]
[null,{"$f":"IF(S35>N12,_xlfn.CONCAT(\"Viatura adquirida após o período de tributação de \",N12,\".\"),_xlfn.CONCAT(\"Conforme definido na Portaria nº 383/2003 de 14 de Maio o valor de mercado foi obtido considerando o coeficiente de desvalorização de \", S16, \", dado que o veículo à data de \", T16,\" tinha \", S14,\" ano(s). \"))","v":"Conforme definido na Portaria nº 383/2003 de 14 de Maio o valor de mercado foi obtido considerando o coeficiente de desvalorização de 0, dado que o veículo à data de 01/01/2026 tinha 0 ano(s). "}]
[null,{"$f":"IF(S35>N12,\"\",_xlfn.CONCAT(\"Nos termos do disposto no n.º 5 do artigo 24.º do Código do IRS o rendimento anual na esfera do trabalhador por atribuição do uso de viatura automóvel pela entidade patronal, que tem a natureza de rendimento em espécie, corresponde ao produto de 0,75% de \",T18, \" (valor de mercado da viatura), reportado a \", T16, \", por \",N18, \" meses de utilização da mesma.\"))","v":"Nos termos do disposto no n.º 5 do artigo 24.º do Código do IRS o rendimento anual na esfera do trabalhador por atribuição do uso de viatura automóvel pela entidade patronal, que tem a natureza de rendimento em espécie, corresponde ao produto de 0,75% de 0,00 € (valor de mercado da viatura), reportado a 01/01/2026, por 0 meses de utilização da mesma."}]
[null,{"$f":"IF(S35>N12,\"\",IF(N18=0,\"\",_xlfn.CONCAT(\"Caso preencha os requisitos previstos no artigo 46.º-A do Código dos Regimes Contributivos do Sistema Providencial da Segurança Social, deverá sujeitar mensalmente a segurança social o seguinte valor: \",T41)))","v":""}]
[]
[]
[]
[]
[]
[]
[]
[]
[]
[]
[]
[]
[]
[]
[null,"Data de simulação",null,{"$f":"TODAY()","v":"2026-03-06"}]
[]
[]
[null,"v 1.1"]
[null,"A Ordem não se responsabiliza por valores incorretos apurados, resultantes de erros na introdução de dados ou na interpretação das normas aplicáveis."]

{"sheet":"Alerta","index":1,"n_rows":13,"n_cols":2,"rows_kept":13,"cut":false,"hidden":true,"merged":[[0,1,0,6],[1,1,1,6],[5,1,5,6],[12,1,13,5]]}
[]
[null,"Simulador"]
[]
[]
[]
[null,"Para utilizar o simulador deverá ativar as macros."]
[]
[]
[]
[]
[]
[]
[null,"Ficheiro compatível apenas com versões posteriores a Microsoft Office Excel 2007 e em formato Livro com Permissão para Macros do Excel (*.xlsm)"]